lending/lending_fUSD_20250316
["ID","MTS","AMOUNT","RATE_DAILY","PERIOD"]
[356228878,1742111497996,-500.0,0.00043287,31]
[356228879,1742111498006,-500.0,0.00043287,31]
[356228880,1742111498016,-500.0,0.00043287,31]
[356228881,1742111498027,-550.81,0.00043287,31]
[356228882,1742111498036,-947.27,0.00043287,31]
[356228883,1742111498046,-318.78573242,0.00043287,31]
[356228884,1742111498056,-500.0,0.00043287,31]
[356228885,1742111498066,-500.0,0.00043287,31]
[356228886,1742111498075,-6199.65,0.00043287,2]
[356228887,1742111498084,-500.0,0.00043287,31]
[356228888,1742111498093,-500.0,0.00043287,31]
[356228889,1742111498103,-500.0,0.00043287,31]
[356228890,1742111498112,-500.0,0.00043287,31]
[356228891,1742111498122,-753.92,0.00043287,31]
[356228892,1742111498131,-500.0,0.00043287,31]
[356228893,1742111498141,-553.96,0.00043287,31]
[356228894,1742111498150,-500.0,0.00043287,31]
[356228895,1742111498160,-500.0,0.00043287,31]
[356228896,1742111498170,-902.3,0.00043287,31]
[356228897,1742111498180,-500.0,0.00043287,31]
[356228898,1742111498189,-753.45,0.00043287,31]
[356228899,1742111498200,-996.38,0.00043287,31]
[356228900,1742111498209,-1743.26,0.00043287,31]
[356228901,1742111498221,-500.0,0.00043287,31]
[356228902,1742111498230,-500.0,0.00043287,31]
[356228903,1742111498240,-974.64,0.00043287,31]
[356228904,1742111498251,-751.5,0.00043287,31]
[356228905,1742111498261,-500.0,0.00043287,31]
[356228906,1742111498272,-688.54,0.00043287,31]
[356228907,1742111498282,-756.01,0.00043287,30]
[356228908,1742111498293,-500.0,0.00043287,31]
[356228909,1742111498304,-1143.47,0.00043287,31]
[356228910,1742111498313,-1395.42,0.00043287,31]
[356228911,1742111498323,-500.0,0.00043287,31]
[356228912,1742111498333,-500.0,0.00043287,31]
[356228913,1742111498343,-853.98,0.00043287,31]
[356228914,1742111498353,-500.0,0.00043287,31]
[356228915,1742111498363,-500.0,0.00043287,31]
[356228916,1742111498373,-500.0,0.00043287,31]
[356228917,1742111498383,-976.91,0.00043287,31]
[356228918,1742111498393,-891.22,0.00043287,31]
[356228919,1742111498403,-500.0,0.00043287,31]
[356228920,1742111498412,-510.58,0.00043287,31]
[356228921,1742111498422,-500.0,0.00043287,31]
[356228922,1742111498432,-500.0,0.00043287,31]
[356228923,1742111498442,-551.4487856,0.00043287,31]
[356228924,1742111498452,-1217.97,0.00043287,31]
[356228925,1742111498462,-500.0,0.00043287,31]
[356228926,1742111498471,-598.8,0.00043287,31]
[356228927,1742111498481,-1307.29,0.00043287,31]
[356228928,1742111498491,-532.87,0.00043287,31]
[356228929,1742111498501,-559.89,0.00043287,31]
[356228930,1742111498511,-500.0,0.00043287,31]
[356228931,1742111498521,-1344.17,0.00043287,31]
[356228932,1742111498531,-500.0,0.00043287,31]
[356228933,1742111498541,-500.0,0.00043287,31]
[356228934,1742111498551,-650.81,0.00043287,31]
[356228935,1742111498561,-1282.95,0.00043287,31]
[356228936,1742111498571,-500.0,0.00043287,31]
[356228937,1742111498580,-500.0,0.00043287,31]
[356228938,1742111498590,-1782.47,0.00043287,31]
[356228939,1742111498599,-667.69,0.00043287,31]
[356228940,1742111498610,-500.0,0.00043287,31]
[356228941,1742111498619,-500.0,0.00043287,31]
[356228942,1742111498629,-500.0,0.00043287,31]
[356228943,1742111498640,-607.98,0.00043287,31]
[356228944,1742111498650,-930.36,0.00043287,31]
[356228945,1742111498659,-500.0,0.00043287,31]
[356228946,1742111498668,-500.0,0.00043287,31]
[356228947,1742111498678,-500.0,0.00043287,31]
[356228948,1742111498688,-798.59,0.00043287,31]
[356228949,1742111498697,-500.0,0.00043287,31]
[356228950,1742111498707,-500.0,0.00043287,31]
[356228951,1742111498716,-500.0,0.00043287,31]
[356228952,1742111498726,-500.0,0.00043287,31]
[356228953,1742111498736,-909.49,0.00043287,31]
[356228954,1742111498746,-505.94,0.00043287,31]
[356228955,1742111498755,-1398.91,0.00043287,31]
[356228956,1742111498765,-500.0,0.00043287,31]
[356228957,1742111498778,-904.9,0.00043287,31]
[356228958,1742111498788,-518.21,0.00043287,31]
[356228959,1742111498798,-736.88,0.00043287,31]
[356228960,1742111498808,-2706.13,0.00043287,31]
[356228961,1742111498818,-1096.96,0.00043287,31]
[356228962,1742111498827,-502.16,0.00043287,31]
[356228963,1742111498837,-500.0,0.00043287,31]
[356228964,1742111498849,-500.0,0.00043287,31]
[356228965,1742111498860,-771.46,0.00043287,31]
[356228966,1742111498869,-1943.0,0.00043287,31]
[356228967,1742111498879,-500.0,0.00043287,31]
[356228968,1742111498888,-2893.62,0.00043287,31]
[356228969,1742111498898,-594.97,0.00043287,31]
[356228970,1742111498908,-559.09,0.00043287,31]
[356228971,1742111498918,-608.45,0.00043287,31]
[356228972,1742111498928,-1099.67,0.00043287,31]
[356228973,1742111498939,-500.0,0.00043287,31]
[356228974,1742111498949,-212.63424097,0.00043287,31]
[356228975,1742111498959,-557.42,0.00043287,31]
[356228976,1742111498969,-778.96,0.00043287,31]
[356228977,1742111498979,-687.15,0.00043287,31]
[356228978,1742111498989,-562.21,0.00043287,31]
[356228979,1742111498999,-500.0,0.00043287,31]
[356228980,1742111499009,-500.0,0.00043287,31]
[356228981,1742111499018,-776.36,0.00043287,31]
[356228982,1742111499029,-722.28,0.00043287,31]
[356228983,1742111499040,-500.0,0.00043287,31]
[356228984,1742111499050,-659.6,0.00043287,31]
[356228985,1742111499060,-500.0,0.00043287,31]
[356228986,1742111499069,-1067.18,0.00043287,31]
[356228987,1742111499079,-500.0,0.00043287,31]
[356228988,1742111499089,-500.0,0.00043287,31]
[356228989,1742111499099,-2491.91,0.00043287,31]
[356228990,1742111499108,-500.0,0.00043287,31]
[356228991,1742111499118,-697.39,0.00043287,31]
[356228992,1742111499128,-500.0,0.00043287,31]
[356228993,1742111499138,-983.13,0.00043287,31]
[356228994,1742111499148,-500.0,0.00043287,31]
[356228995,1742111499158,-775.18,0.00043287,31]
[356228996,1742111499169,-500.0,0.00043287,31]
[356228997,1742111499179,-689.44,0.00043287,31]
[356228998,1742111499189,-500.0,0.00043287,31]
[356228999,1742111499198,-627.84,0.00043287,31]
[356229000,1742111499207,-821.48,0.00043287,31]
[356229001,1742111499217,-539.91,0.00043287,31]
[356229002,1742111499227,-522.34,0.00043287,31]
[356229003,1742111499236,-805.93,0.00043287,31]
[356229004,1742111499246,-500.0,0.00043287,31]
[356229005,1742111499255,-570.1,0.00043287,31]
[356229006,1742111499264,-586.65,0.00043287,31]
[356229007,1742111499273,-500.0,0.00043287,31]
[356229008,1742111499283,-938.83,0.00043287,31]
[356229009,1742111499292,-743.89,0.00043287,31]
[356229010,1742111499302,-500.0,0.00043287,31]
[356229011,1742111499311,-2055.51,0.00043287,31]
[356229012,1742111499321,-500.0,0.00043287,31]
[356229013,1742111499330,-1717.26,0.00043287,31]
[356229014,1742111499339,-500.0,0.00043287,31]
[356229015,1742111499348,-500.0,0.00043287,31]
[356229016,1742111499358,-500.0,0.00043287,31]
[356229017,1742111499367,-519.06,0.00043287,31]
[356229018,1742111499377,-615.85,0.00043287,31]
[356229019,1742111499387,-952.36,0.00043287,31]
[356229020,1742111499396,-500.0,0.00043287,31]
[356229021,1742111499406,-1162.68,0.00043287,31]
[356229022,1742111499416,-733.04,0.00043287,31]
[356229023,1742111499426,-500.0,0.00043287,31]
[356229024,1742111499436,-508.68,0.00043287,31]
[356229025,1742111499445,-500.0,0.00043287,31]
[356229026,1742111499456,-500.0,0.00043287,31]
[356229027,1742111499465,-761.29,0.00043287,31]
[356229028,1742111499475,-557.55201067,0.00043287,31]
[356229029,1742111499484,-296.81776944,0.00043287,31]
[356229030,1742111499494,-1074.18,0.00043287,31]
[356229031,1742111499503,-457.92373048,0.00043287,31]
[356229032,1742111499514,-500.0,0.00043287,31]
[356229033,1742111499523,-500.0,0.00043287,31]
[356229034,1742111499533,-500.0,0.00043287,31]
[356229035,1742111499543,-500.0,0.00043287,31]
[356229036,1742111499552,-500.0,0.00043287,31]
[356229037,1742111499562,-655.56,0.00043287,31]
[356229038,1742111499572,-706.21,0.00043287,31]
[356229039,1742111499583,-927.45,0.00043287,31]
[356229040,1742111499593,-1351.46,0.00043287,31]
[356229041,1742111499603,-975.01,0.00043287,31]
[356229042,1742111499613,-1101.69,0.00043287,31]
[356229043,1742111499623,-828.2,0.00043287,31]
[356229044,1742111499634,-150.0,0.00043313,30]
[356229045,1742111499643,-999.999999,0.00043333,120]
[356229046,1742111499653,-40910.0,0.0004334,5]
[356229047,1742111499833,-150.0,0.00043345,30]
[356229048,1742111499843,-150.0,0.00043411,30]
[356229049,1742111499855,-2110.0,0.00043431,30]
[356229050,1742111499865,-999.0,0.00043469,120]
[356229051,1742111499876,-150.0,0.00043477,30]
[356229052,1742111499887,-150.0,0.00043493,30]
[356229053,1742111499895,-150.0,0.00043512,30]
[356229054,1742111499904,-5741.31504422,0.00043521,120]
[356229055,1742111499914,-150.0,0.00043543,30]
[356229056,1742111499924,-1313.515609,0.00043561,31]
[356229057,1742111499934,-156.801182,0.00043561,31]
[356229058,1742111499945,-1612.967399,0.00043561,31]
[356229059,1742111499956,-500.0,0.00043561,31]
[356229060,1742111499966,-585.40175678,0.00043561,31]
[356229061,1742111499976,-556.85,0.00043561,31]
[356229062,1742111499986,-902.79,0.00043561,31]
[356229063,1742111499995,-500.0,0.00043561,31]
[356229064,1742111500005,-500.0,0.00043561,31]
[356229065,1742111500015,-615.18,0.00043561,31]
[356229066,1742111500024,-638.03,0.00043561,31]
[356229067,1742111500034,-591.42,0.00043561,31]
[356229068,1742111500044,-935.16,0.00043561,31]
[356229069,1742111500054,-500.0,0.00043561,31]
[356229070,1742111500064,-511.96,0.00043561,31]
[356229071,1742111500073,-931.92,0.00043561,31]
[356229072,1742111500083,-830.53,0.00043561,31]
[356229073,1742111500092,-500.0,0.00043561,31]
[356229074,1742111500102,-579.15,0.00043561,31]
[356229075,1742111500112,-489.32450068,0.00043561,31]
[356229076,1742111500121,-918.96,0.00043561,31]
[356229077,1742111500131,-500.0,0.00043561,31]
[356229078,1742111500141,-500.0,0.00043561,31]
[356229079,1742111500151,-408.57665754,0.00043561,31]
[356229080,1742111500161,-690.98,0.00043561,31]
[356229081,1742111500171,-635.32,0.00043561,31]
[356229082,1742111500182,-1286.63,0.00043561,31]
[356229083,1742111500191,-499.54508173,0.00043561,31]
[356229084,1742111500201,-660.09,0.00043561,31]
[356229085,1742111500210,-500.0,0.00043561,31]
[356229086,1742111500220,-500.0,0.00043561,31]
[356229087,1742111500230,-721.38,0.00043561,31]
[356229088,1742111500240,-566.16,0.00043561,31]
[356229089,1742111500250,-500.0,0.00043561,31]
[356229090,1742111500260,-500.0,0.00043561,31]
[356229091,1742111500271,-500.0,0.00043561,31]
[356229092,1742111500280,-500.0,0.00043561,31]
[356229093,1742111500290,-500.0,0.00043561,31]
[356229094,1742111500300,-1005.63,0.00043561,31]
[356229095,1742111500310,-500.0,0.00043561,31]
[356229096,1742111500320,-500.0,0.00043561,31]
[356229097,1742111500330,-721.97,0.00043561,31]
[356229098,1742111500339,-500.0,0.00043561,31]
[356229099,1742111500349,-500.0,0.00043561,31]
[356229100,1742111500360,-536.37,0.00043561,31]
[356229101,1742111500370,-500.0,0.00043561,31]
[356229102,1742111500380,-1375.93,0.00043561,31]
[356229103,1742111500391,-500.0,0.00043561,31]
[356229104,1742111500400,-1226.69,0.00043561,31]
[356229105,1742111500410,-500.0,0.00043561,31]
[356229106,1742111500420,-500.0,0.00043561,31]
[356229107,1742111500430,-2466.31,0.00043561,31]
[356229108,1742111500444,-500.0,0.00043561,31]
[356229109,1742111500453,-500.0,0.00043561,31]
[356229110,1742111500462,-500.0,0.00043561,31]
[356229111,1742111500472,-500.0,0.00043561,31]
[356229112,1742111500482,-500.0,0.00043561,31]
[356229113,1742111500492,-500.0,0.00043561,31]
[356229114,1742111500502,-500.0,0.00043561,31]
[356229115,1742111500512,-500.0,0.00043561,31]
[356229116,1742111500522,-500.0,0.00043561,31]
[356229117,1742111500532,-500.0,0.00043561,31]
[356229118,1742111500541,-1538.32,0.00043561,31]
[356229119,1742111500551,-274.31086907,0.00043561,31]
[356229120,1742111500560,-591.92,0.00043561,31]
[356229121,1742111500570,-376.16452664,0.00043561,31]
[356229122,1742111500579,-500.0,0.00043561,31]
[356229123,1742111500589,-500.0,0.00043561,31]
[356229124,1742111500599,-1307.53,0.00043561,31]
[356229125,1742111500609,-500.0,0.00043561,31]
[356229126,1742111500619,-500.0,0.00043561,31]
[356229127,1742111500629,-500.0,0.00043561,31]
[356229128,1742111500639,-1195.59,0.00043561,31]
[356229129,1742111500649,-718.08,0.00043561,31]
[356229130,1742111500659,-759.46,0.00043561,31]
[356229131,1742111500669,-816.43,0.00043561,31]
[356229132,1742111500679,-500.0,0.00043561,31]
[356229133,1742111500690,-500.0,0.00043561,31]
[356229134,1742111500701,-669.82,0.00043561,31]
[356229135,1742111500711,-532.22,0.00043561,31]
[356229136,1742111500721,-500.0,0.00043561,31]
[356229137,1742111500731,-583.52,0.00043561,31]
[356229138,1742111500741,-500.0,0.00043561,31]
[356229139,1742111500751,-500.0,0.00043561,31]
[356229140,1742111500762,-500.0,0.00043561,31]
[356229141,1742111500776,-500.0,0.00043561,31]
[356229142,1742111500786,-500.0,0.00043561,31]
[356229143,1742111500797,-500.0,0.00043561,31]
[356229144,1742111500808,-1093.89,0.00043561,31]
[356229145,1742111500819,-500.0,0.00043561,31]
[356229146,1742111500828,-500.0,0.00043561,31]
[356229147,1742111500839,-500.0,0.00043561,31]
[356229148,1742111500849,-350.0,0.00043561,2]
[356229149,1742111500859,-664.63,0.00043561,31]
[356229150,1742111500869,-500.0,0.00043561,31]
[356229151,1742111500879,-521.69,0.00043561,31]
[356229152,1742111500890,-500.0,0.00043561,31]
[356229153,1742111500900,-500.0,0.00043561,31]
[356229154,1742111500911,-500.0,0.00043561,31]
[356229155,1742111500920,-921.17,0.00043561,31]
[356229156,1742111500930,-620.56,0.00043561,31]
[356229157,1742111500941,-987.05,0.00043561,31]
[356229158,1742111500950,-500.0,0.00043561,31]
[356229159,1742111500960,-500.0,0.00043561,31]
[356229160,1742111500969,-781.76,0.00043561,31]
[356229161,1742111500979,-500.0,0.00043561,31]
[356229162,1742111500989,-500.0,0.00043561,31]
[356229163,1742111500999,-845.81,0.00043561,31]
[356229164,1742111501009,-500.0,0.00043561,31]
[356229165,1742111501018,-256.99973436,0.00043561,31]
[356229166,1742111501029,-1638.59,0.00043561,31]
[356229167,1742111501038,-693.95,0.00043561,31]
[356229168,1742111501047,-500.0,0.00043561,31]
[356229169,1742111501057,-500.0,0.00043561,31]
[356229170,1742111501066,-500.0,0.00043561,31]
[356229171,1742111501076,-500.0,0.00043561,31]
[356229172,1742111501087,-615.98,0.00043561,31]
[356229173,1742111501097,-500.0,0.00043561,31]
[356229174,1742111501106,-1103.98,0.00043561,31]
[356229175,1742111501116,-500.0,0.00043561,31]
[356229176,1742111501126,-560.03,0.00043561,31]
[356229177,1742111501135,-524.38,0.00043561,31]
[356229178,1742111501145,-779.68,0.00043561,31]
[356229179,1742111501155,-948.44,0.00043561,31]
[356229180,1742111501165,-505.57,0.00043561,31]
[356229181,1742111501175,-804.83,0.00043561,31]
[356229182,1742111501184,-1070.37,0.00043561,10]
[356229183,1742111501194,-757.94,0.00043561,31]
[356229184,1742111501203,-500.0,0.00043561,31]
[356229185,1742111501213,-500.0,0.00043561,31]
[356229186,1742111501223,-1211.56,0.00043561,31]
[356229187,1742111501235,-500.0,0.00043561,31]
[356229188,1742111501255,-965.9,0.00043561,31]
[356229189,1742111501271,-500.0,0.00043561,31]
[356229190,1742111501289,-500.0,0.00043561,31]
[356229191,1742111501308,-500.0,0.00043561,31]
[356229192,1742111501325,-500.0,0.00043561,31]
[356229193,1742111501341,-300.0,0.00043561,31]
[356229194,1742111501358,-500.0,0.00043561,31]
[356229195,1742111501376,-960.56,0.00043561,31]
[356229196,1742111501393,-500.0,0.00043561,31]
[356229197,1742111501412,-1545.52,0.00043561,7]
[356229198,1742111501427,-555.70010773,0.00043561,31]
[356229199,1742111501444,-512.78,0.00043561,31]
[356229200,1742111501464,-564.0,0.00043561,31]
[356229201,1742111501478,-500.0,0.00043561,31]
[356229202,1742111501491,-1248.52,0.00043561,31]
[356229203,1742111501510,-953.92,0.00043561,31]
[356229204,1742111501523,-500.0,0.00043561,31]
[356229205,1742111501536,-500.0,0.00043561,31]
[356229206,1742111501553,-1217.97,0.00043561,31]
[356229207,1742111501566,-1765.6,0.00043561,31]
[356229208,1742111501581,-500.0,0.00043561,31]
[356229209,1742111501596,-500.0,0.00043561,31]
[356229210,1742111501612,-607.57,0.00043561,31]
[356229211,1742111501626,-706.52,0.00043561,31]
[356229212,1742111501641,-500.0,0.00043561,31]
[356229213,1742111501655,-500.0,0.00043561,31]
[356229214,1742111501669,-500.0,0.00043561,31]
[356229215,1742111501684,-529.2,0.00043561,31]
[356229216,1742111501697,-1518.45,0.00043561,31]
[356229217,1742111501711,-500.0,0.00043561,31]
[356229218,1742111501726,-500.0,0.00043561,31]
[356229219,1742111501741,-500.0,0.00043561,31]
[356229220,1742111501756,-500.0,0.00043561,31]
[356229221,1742111501772,-785.48,0.00043561,31]
[356229222,1742111501787,-500.0,0.00043561,31]
[356229223,1742111501801,-1112.76,0.00043561,31]
[356229224,1742111501815,-4687.06,0.00043561,31]
[356229225,1742111501829,-172.69902609,0.00043561,31]
[356229226,1742111501843,-660.72,0.00043561,31]
[356229227,1742111501856,-500.0,0.00043561,31]
[356229228,1742111501870,-500.0,0.00043561,31]
[356229229,1742111501884,-500.0,0.00043561,31]
[356229230,1742111501898,-731.21,0.00043561,31]
[356229231,1742111501913,-1384.4,0.00043561,31]
[356229232,1742111501928,-500.0,0.00043561,31]
[356229233,1742111501943,-549.87,0.00043561,31]
[356229234,1742111501957,-942.3,0.00043561,31]
[356229235,1742111501973,-729.09,0.00043561,31]
[356229236,1742111501987,-500.0,0.00043561,31]
[356229237,1742111502001,-859.7,0.00043561,31]
[356229238,1742111502015,-617.27,0.00043561,31]
[356229239,1742111502028,-500.0,0.00043561,31]
[356229240,1742111502043,-500.0,0.00043561,31]
[356229241,1742111502059,-500.0,0.00043561,31]
[356229242,1742111502075,-550.81,0.00043561,31]
[356229243,1742111502089,-947.27,0.00043561,31]
[356229244,1742111502103,-500.0,0.00043561,31]
[356229245,1742111502117,-500.0,0.00043561,31]
[356229246,1742111502131,-6199.65,0.00043561,2]
[356229247,1742111502145,-500.0,0.00043561,31]
[356229248,1742111502159,-500.0,0.00043561,31]
[356229249,1742111502172,-500.0,0.00043561,31]
[356229250,1742111502186,-500.0,0.00043561,31]
[356229251,1742111502199,-753.92,0.00043561,31]
[356229252,1742111502212,-500.0,0.00043561,31]
[356229253,1742111502226,-553.96,0.00043561,31]
[356229254,1742111502240,-500.0,0.00043561,31]
[356229255,1742111502252,-500.0,0.00043561,31]
[356229256,1742111502266,-902.3,0.00043561,31]
[356229257,1742111502279,-150.59288166,0.00043561,31]
[356229258,1742111502292,-753.45,0.00043561,31]
[356229259,1742111502306,-996.38,0.00043561,31]
[356229260,1742111502320,-1743.26,0.00043561,31]
[356229261,1742111502334,-500.0,0.00043561,31]
[356229262,1742111502349,-500.0,0.00043561,31]
[356229263,1742111502363,-751.5,0.00043561,31]
[356229264,1742111502380,-974.64,0.00043561,31]
[356229265,1742111502391,-500.0,0.00043561,31]
[356229266,1742111502401,-688.54,0.00043561,31]
[356229267,1742111502411,-756.01,0.00043561,30]
[356229268,1742111502421,-500.0,0.00043561,31]
[356229269,1742111502431,-1143.47,0.00043561,31]
[356229270,1742111502441,-1395.42,0.00043561,31]
[356229271,1742111502451,-551.04198318,0.00043561,31]
[356229272,1742111502460,-500.0,0.00043561,31]
[356229273,1742111502470,-853.98,0.00043561,31]
[356229274,1742111502481,-500.0,0.00043561,31]
[356229275,1742111502491,-500.0,0.00043561,31]
[356229276,1742111502501,-500.0,0.00043561,31]
[356229277,1742111502510,-976.91,0.00043561,31]
[356229278,1742111502520,-891.22,0.00043561,31]
[356229279,1742111502530,-500.0,0.00043561,31]
[356229280,1742111502539,-510.58,0.00043561,31]
[356229281,1742111502550,-469.59982075,0.00043561,31]
[356229282,1742111502559,-500.0,0.00043561,31]
[356229283,1742111502569,-1217.97,0.00043561,31]
[356229284,1742111502578,-500.0,0.00043561,31]
[356229285,1742111502588,-598.8,0.00043561,31]
[356229286,1742111502598,-1307.29,0.00043561,31]
[356229287,1742111502607,-532.87,0.00043561,31]
[356229288,1742111502616,-559.89,0.00043561,31]
[356229289,1742111502627,-500.0,0.00043561,31]
[356229290,1742111502637,-1344.17,0.00043561,31]
[356229291,1742111502647,-500.0,0.00043561,31]
[356229292,1742111502656,-500.0,0.00043561,31]
[356229293,1742111502666,-650.81,0.00043561,31]
[356229294,1742111502676,-1282.95,0.00043561,31]
[356229295,1742111502686,-500.0,0.00043561,31]
[356229296,1742111502696,-485.61690316,0.00043561,31]
[356229297,1742111502705,-1782.47,0.00043561,31]
[356229298,1742111502715,-667.69,0.00043561,31]
[356229299,1742111502725,-484.54026302,0.00043561,31]
[356229300,1742111502734,-500.0,0.00043561,31]
[356229301,1742111502744,-500.0,0.00043561,31]
[356229302,1742111502754,-607.98,0.00043561,31]
[356229303,1742111502764,-930.36,0.00043561,31]
[356229304,1742111502779,-500.0,0.00043561,31]
[356229305,1742111502790,-500.0,0.00043561,31]
[356229306,1742111502800,-500.0,0.00043561,31]
[356229307,1742111502811,-798.59,0.00043561,31]
[356229308,1742111502821,-500.0,0.00043561,31]
[356229309,1742111502831,-500.0,0.00043561,31]
[356229310,1742111502844,-500.0,0.00043561,31]
[356229311,1742111502854,-500.0,0.00043561,31]
[356229312,1742111502864,-909.49,0.00043561,31]
[356229313,1742111502875,-505.94,0.00043561,31]
[356229314,1742111502885,-1398.91,0.00043561,31]
[356229315,1742111502896,-500.0,0.00043561,31]
[356229316,1742111502906,-904.9,0.00043561,31]
[356229317,1742111502916,-518.21,0.00043561,31]
[356229318,1742111502926,-736.88,0.00043561,31]
[356229319,1742111503219,-2706.13,0.00043561,31]
[356229320,1742111503373,-1096.96,0.00043561,31]
[356229321,1742111503394,-502.16,0.00043561,31]
[356229322,1742111503412,-500.0,0.00043561,31]
[356229323,1742111503426,-500.0,0.00043561,31]
[356229324,1742111503435,-771.46,0.00043561,31]
[356229325,1742111503445,-1943.0,0.00043561,31]
[356229326,1742111503454,-500.0,0.00043561,31]
[356229327,1742111503464,-2893.62,0.00043561,31]
[356229328,1742111503473,-594.97,0.00043561,31]
[356229329,1742111503483,-559.09,0.00043561,31]
[356229330,1742111503492,-608.45,0.00043561,31]
[356229331,1742111503502,-1099.67,0.00043561,31]
[356229332,1742111503512,-500.0,0.00043561,31]
[356229333,1742111503521,-557.42,0.00043561,31]
[356229334,1742111503530,-778.96,0.00043561,31]
[356229335,1742111503539,-687.15,0.00043561,31]
[356229336,1742111503549,-562.21,0.00043561,31]
[356229337,1742111503558,-500.0,0.00043561,31]
[356229338,1742111503567,-500.0,0.00043561,31]
[356229339,1742111503577,-776.36,0.00043561,31]
[356229340,1742111503587,-722.28,0.00043561,31]
[356229341,1742111503597,-500.0,0.00043561,31]
[356229342,1742111503607,-659.6,0.00043561,31]
[356229343,1742111503617,-500.0,0.00043561,31]
[356229344,1742111503627,-1067.18,0.00043561,31]
[356229345,1742111503637,-500.0,0.00043561,31]
[356229346,1742111503648,-500.0,0.00043561,31]
[356229347,1742111503658,-2491.91,0.00043561,31]
[356229348,1742111503668,-500.0,0.00043561,31]
[356229349,1742111503678,-500.0,0.00043561,31]
[356229350,1742111503687,-697.39,0.00043561,31]
[356229351,1742111503697,-983.13,0.00043561,31]
[356229352,1742111503707,-500.0,0.00043561,31]
[356229353,1742111503717,-775.18,0.00043561,31]
[356229354,1742111503727,-500.0,0.00043561,31]
[356229355,1742111503737,-689.44,0.00043561,31]
[356229356,1742111503747,-500.0,0.00043561,31]
[356229357,1742111503757,-627.84,0.00043561,31]
[356229358,1742111503768,-821.48,0.00043561,31]
[356229359,1742111503779,-539.91,0.00043561,31]
[356229360,1742111503789,-522.34,0.00043561,31]
[356229361,1742111503798,-805.93,0.00043561,31]
[356229362,1742111503808,-500.0,0.00043561,31]
[356229363,1742111503818,-570.1,0.00043561,31]
[356229364,1742111503829,-586.65,0.00043561,31]
[356229365,1742111503839,-500.0,0.00043561,31]
[356229366,1742111503849,-938.83,0.00043561,31]
[356229367,1742111503859,-743.89,0.00043561,31]
[356229368,1742111503869,-2055.51,0.00043561,31]
[356229369,1742111503879,-500.0,0.00043561,31]
[356229370,1742111503889,-500.0,0.00043561,31]
[356229371,1742111503899,-1717.26,0.00043561,31]
[356229372,1742111503909,-500.0,0.00043561,31]
[356229373,1742111503920,-500.0,0.00043561,31]
[356229374,1742111503930,-500.0,0.00043561,31]
[356229375,1742111503939,-519.06,0.00043561,31]
[356229376,1742111503949,-615.85,0.00043561,31]
[356229377,1742111503959,-952.36,0.00043561,31]